bitfinex-derivatives/quotes_SOLF0:USTF0_20241107
["timestamp","ask_amount","ask_price","bid_price","bid_amount"]
[1730995113021,2.6011,192.08,192.03,2.6017]
[1730995113521,15.10437229,192.08,192.03,2.6017]
[1730995113719,12.50327229,192.08,192.01,4.26]
[1730995114120,12.50327229,192.08,192.02,4.26]
[1730995114422,12.50327229,192.09,192.02,4.26]
[1730995114619,12.50327229,192.09,192.05,2.6014]
[1730995114816,12.50327229,192.09,192.02,4.26]
[1730995115625,2.6008,192.11,192.02,4.26]
[1730995116029,2.6005,192.12,192.08,2.601]
[1730995116226,16.95646069,192.22,192.09,4.24]
[1730995116526,11.75796069,192.22,192.09,4.24]
[1730995116836,11.75796069,192.22,192.11,7.98987984]
[1730995117328,11.75796069,192.22,192.15,7.98843085]
[1730995117525,11.75796069,192.22,192.17,7.98843085]
[1730995117720,11.75796069,192.22,192.18,4.24]
[1730995118131,11.75796069,192.22,192.1,7.5056]
[1730995118132,7.80536069,192.22,192.19,7.98843085]
[1730995118430,7.98843085,192.27,192.24,2.5988]
[1730995118727,17.95453373,192.43,192.21,7.98843085]
[1730995118728,7.5417,192.41,192.25,4.24]
[1730995118923,7.98843085,192.28,192.25,4.24]
[1730995119726,12.4747675,192.3,192.25,4.24]
[1730995120128,12.4747675,192.27,192.24,4.24]
[1730995122027,7.5417,192.41,192.24,6.8389]
[1730995122227,12.4747675,192.3,192.24,4.24]
[1730995122733,15.0728675,192.3,192.24,6.8389]
[1730995122922,12.4747675,192.3,192.24,4.24]
[1730995124130,15.0729675,192.3,192.24,6.8389]
[1730995125330,12.4747675,192.3,192.25,2.5987]
[1730995125727,2.5976,192.34,192.25,2.5987]
[1730995125930,12.4747675,192.29,192.24,4.24]
[1730995126533,15.0730675,192.29,192.24,6.8389]
[1730995127438,12.4747675,192.29,192.24,4.24]
[1730995128232,12.4747675,192.29,192.16,2.7409306]
[1730995128431,12.4747675,192.32,192.21,12.4747675]
[1730995128835,2.5973,192.37,192.3,2.598]
[1730995129035,2.5973,192.37,192.31,4.24]
[1730995129036,12.4747675,192.36,192.31,4.24]
[1730995129233,12.4747675,192.36,192.23,12.4747675]
[1730995129234,12.4747675,192.36,192.32,4.24]
[1730995129835,12.4747675,192.38,192.32,4.24]
[1730995130036,7.4343,192.49,192.33,12.4747675]
[1730995130234,12.4747675,192.44,192.33,12.4747675]
[1730995130541,2.5966,192.41,192.36,2.5972]
[1730995130834,12.4747675,192.42,192.32,4.24]
[1730995130835,7.4343,192.49,192.32,4.24]
[1730995131040,12.4747675,192.43,192.38,2.597]
[1730995131239,15.62,192.71,192.42,12.4747675]
[1730995131541,5.1828,192.81,192.42,12.4747675]
[1730995131542,12.4747675,192.57,192.43,4.24]
[1730995131751,212.4747675,192.53,192.43,4.24]
[1730995131932,12.4747675,192.51,192.43,4.24]
[1730995132243,200.0,192.53,192.43,4.24]
[1730995132430,212.4747675,192.53,192.39,12.4747675]
[1730995132633,212.4747675,192.53,192.4,4.24]
[1730995132936,2.5955,192.5,192.43,2.5963]
[1730995133436,212.4747675,192.53,192.43,2.5963]
[1730995133734,12.4747675,192.5,192.43,2.5963]
[1730995133937,12.4747675,192.5,192.44,2.5962]
[1730995134653,215.0697675,192.53,192.46,2.5959]
[1730995134848,212.4747675,192.53,192.47,4.24]
[1730995135030,212.4747675,192.53,192.48,15.0703675]
[1730995135031,200.0,192.53,192.48,15.0703675]
[1730995135237,200.0,192.53,192.48,12.4747675]
[1730995135238,199.88199999,192.53,192.48,12.4747675]
[1730995135537,199.88199999,192.53,192.49,4.24]
[1730995136141,199.88199999,192.53,192.48,2.5956]
[1730995136344,199.88199999,192.53,192.49,4.24]
[1730995137239,202.47699999,192.53,192.49,4.24]
[1730995137745,199.88199999,192.53,192.49,4.24]
[1730995138949,199.88199999,192.53,192.44,37.42]
[1730995139248,199.88199999,192.53,192.45,4.24]
[1730995139249,12.4747675,192.49,192.45,4.24]
[1730995139546,2.5954,192.5,192.45,4.24]
[1730995139846,2.5956,192.49,192.45,4.24]
[1730995140050,12.4747675,192.52,192.45,6.8361]
[1730995140342,12.4747675,192.52,192.45,4.24]
[1730995140845,12.4747675,192.52,192.46,4.24]
[1730995141037,199.88199999,192.53,192.46,4.24]
[1730995141237,199.88199999,192.53,192.47,2.5957]
[1730995141544,5.206,192.83,192.47,2.5957]
[1730995141545,15.62,192.88,192.5,12.4747675]
[1730995141735,15.62,192.88,192.47,354.63]
[1730995141736,12.4747675,192.7,192.56,12.4747675]
[1730995141935,12.4747675,192.7,192.57,4.24]
[1730995142136,4.24,192.84,192.57,4.24]
[1730995142443,12.4747675,192.69,192.57,4.24]
[1730995142748,2.5919,192.77,192.58,12.4747675]
[1730995142956,12.4747675,192.71,192.58,12.4747675]
[1730995143242,12.4747675,192.68,192.57,4.24]
[1730995143443,4.8897,192.7,192.55,4.24]
[1730995143642,4.8897,192.7,192.58,12.45467978]
[1730995143945,17.34437978,192.7,192.62,2.5937]
[1730995144146,17.34437978,192.7,192.63,4.24]
[1730995144552,17.34437978,192.7,192.45,31.25]
[1730995144843,17.34437978,192.7,192.55,12.45467978]
[1730995145043,17.34437978,192.7,192.56,4.3]
[1730995145247,4.8897,192.7,192.57,19.92343204]
[1730995146140,2.5949,192.76,192.57,19.92343204]
[1730995146341,4.9807,192.75,192.57,19.92343204]
[1730995146740,4.9807,192.75,192.6,19.92343204]
[1730995147544,4.3,192.86,192.63,19.92343204]
[1730995147843,19.92343204,192.8,192.67,2.593]
[1730995148045,19.92343204,192.8,192.68,4.3]
[1730995148238,24.82833204,192.83,192.68,4.3]
[1730995149238,2.5353,192.85,192.68,4.3]
[1730995149446,4.9947,192.84,192.68,4.3]
[1730995149634,19.92343204,192.81,192.68,4.3]
[1730995149841,19.92343204,192.81,192.69,2.5928]
[1730995150045,19.92343204,192.81,192.68,4.3]
[1730995150350,19.92343204,192.81,192.71,2.5926]
[1730995150641,24.91813204,192.84,192.68,4.3]
[1730995150843,27.50903204,192.84,192.69,2.5927]
[1730995151150,27.50903204,192.84,192.68,4.3]
[1730995151443,24.91813204,192.84,192.68,4.3]
[1730995151654,24.91813204,192.84,192.73,2.5923]
[1730995152349,24.91813204,192.84,192.72,4.3]
[1730995153237,4.9947,192.84,192.72,4.3]
[1730995153440,24.91813204,192.84,192.72,4.3]
[1730995154249,24.91813204,192.84,192.72,6.8923]
[1730995154444,24.91813204,192.84,192.72,4.3]
[1730995154844,27.50903204,192.84,192.72,4.3]
[1730995155048,4.9947,192.84,192.72,4.3]
[1730995155351,7.5856,192.84,192.73,4.3]
[1730995155551,19.92343204,192.81,192.74,4.3]
[1730995155851,19.92343204,192.82,192.67,22.51643204]
[1730995156054,19.92343204,192.82,192.68,4.3]
[1730995156253,4.9947,192.84,192.68,4.3]
[1730995156446,24.91813204,192.84,192.68,4.3]
[1730995156843,24.91813204,192.84,192.67,19.92343204]
[1730995156844,19.92343204,192.8,192.67,19.92343204]
[1730995157051,19.92343204,192.8,192.68,4.3]
[1730995157440,19.92343204,192.8,192.69,2.5928]
[1730995157642,19.92343204,192.8,192.68,4.3]
[1730995158254,19.92343204,192.83,192.68,4.3]
[1730995158565,4.9947,192.84,192.68,4.3]
[1730995159254,4.9947,192.84,192.73,2.5923]
[1730995159649,19.92343204,192.81,192.7,2.5926]
[1730995159850,19.92343204,192.81,192.68,4.3]
[1730995160244,19.92343204,192.81,192.71,2.5925]
[1730995160446,19.92343204,192.81,192.68,4.3]
[1730995160649,19.92343204,192.81,192.69,4.3]
[1730995160850,22.51473204,192.81,192.69,6.8928]
[1730995161054,19.92343204,192.81,192.69,4.3]
[1730995161252,19.92343204,192.81,192.64,20.56286204]
[1730995161446,19.92343204,192.78,192.64,20.56286204]
[1730995161646,19.92343204,192.78,192.65,4.3]
[1730995162255,19.92343204,192.81,192.65,4.3]
[1730995162455,4.3,192.83,192.65,4.3]
[1730995162456,19.92343204,192.77,192.65,4.3]
[1730995162656,19.92343201,192.77,192.65,4.3]
[1730995163157,19.92343204,192.67,192.51,19.92343204]
[1730995163358,4.8479,192.66,192.51,19.92343204]
[1730995163651,4.8479,192.66,192.47,4.3]
[1730995163857,4.8479,192.66,192.57,19.92687069]
[1730995164159,4.8479,192.66,192.58,4.3]
[1730995164552,4.8479,192.66,192.58,4.05]
[1730995164749,4.8479,192.66,192.6,19.92687069]
[1730995165254,4.8479,192.66,192.5,2.53743925]
[1730995165453,4.8479,192.66,192.55,19.92687069]
[1730995165654,4.8479,192.66,192.48,0.636]
[1730995165851,4.8479,192.66,192.54,19.92687069]
[1730995166053,4.8479,192.66,192.49,4.3]
[1730995166352,17.30065814,192.66,192.54,12.45275814]
[1730995166752,17.30065814,192.66,192.52,12.45275814]
[1730995167257,4.8479,192.66,192.57,12.45275814]
[1730995168156,5.0748,192.65,192.54,12.45275814]
[1730995168357,2.4812,192.65,192.54,12.45275814]
[1730995169057,2.4812,192.65,192.51,16.75275814]
[1730995169058,12.45275814,192.63,192.51,16.75275814]
[1730995169454,2.4812,192.65,192.54,12.45275814]
[1730995169655,2.4812,192.65,192.51,4.3]
[1730995169855,2.4812,192.65,192.54,12.45275814]
[1730995170357,2.4812,192.65,192.57,12.45275814]
[1730995171452,2.4812,192.65,192.58,6.8944]
[1730995171857,2.4812,192.65,192.58,4.3]
[1730995172175,4.8479,192.66,192.58,4.3]
[1730995172176,4.8479,192.66,192.6,12.45275814]
[1730995172358,4.8479,192.66,192.63,11.45275814]
[1730995172548,4.8479,192.66,192.63,14.04665814]
[1730995172753,4.8479,192.66,192.63,11.45275814]
[1730995173455,4.8479,192.66,192.62,2.5937]
[1730995173957,4.8479,192.66,192.61,2.5938]
[1730995174153,4.8479,192.66,192.6,12.45275814]
[1730995174673,4.42,192.97,192.65,12.45275814]
[1730995174961,4.9559,192.81,192.71,12.45275814]
[1730995175554,4.9559,192.81,192.66,4.42]
[1730995175555,14.88785814,192.8,192.66,4.42]
[1730995175754,12.45275814,192.77,192.68,2.593]
[1730995175955,12.45275814,192.77,192.69,4.42]
[1730995176159,12.45275814,192.77,192.69,4.68]
[1730995176661,2.4351,192.8,192.69,4.68]
[1730995176866,2.4351,192.8,192.71,2.5924]
[1730995177068,2.4351,192.8,192.69,4.68]
[1730995177358,12.45275814,192.77,192.69,4.68]
[1730995177564,12.45275814,192.77,192.71,2.5925]
[1730995178164,12.45275814,192.77,192.69,4.68]
[1730995178366,2.4351,192.8,192.69,4.68]
[1730995178367,12.44233569,192.75,192.69,4.68]
[1730995178951,12.44233569,192.75,192.69,3.68]
[1730995179764,12.44233569,192.75,192.67,4.68]
[1730995180453,12.44233569,192.75,192.67,7.273]
[1730995180659,12.44233569,192.75,192.67,2.593]
[1730995180858,10.44233569,192.75,192.67,2.593]
[1730995181058,10.44233569,192.75,192.68,2.593]
[1730995181860,10.44233569,192.75,192.69,2.5927]
[1730995182061,2.4351,192.8,192.66,17.12233569]
[1730995182266,12.44233569,192.79,192.66,17.12233569]
[1730995182458,2.4351,192.8,192.68,12.44233569]
[1730995182659,0.4351,192.8,192.68,12.44233569]
[1730995182857,12.44233569,192.79,192.68,12.44233569]
[1730995183064,12.44233569,192.79,192.68,11.44233569]
[1730995183563,12.44233569,192.79,192.69,4.68]
[1730995183767,12.44233569,192.79,192.7,2.5926]
[1730995183966,0.4351,192.8,192.69,4.68]
[1730995184168,12.44233569,192.78,192.69,3.68]
[1730995185162,11.44233569,192.78,192.7,2.5926]
[1730995185567,11.44233569,192.78,192.7,1.5926]
[1730995186368,11.44233569,192.78,192.69,3.68]
[1730995186574,12.44233569,192.72,192.48,15.62]
[1730995186864,4.9827,192.71,192.57,12.44233569]
[1730995187069,3.9827,192.71,192.57,12.44233569]
[1730995187468,3.9827,192.71,192.6,12.44233569]
[1730995187662,3.9827,192.71,192.62,12.44233569]
[1730995188472,2.5959,192.71,192.65,12.44233569]
[1730995189060,7.2712,192.82,192.68,2.5929]
[1730995189260,7.2712,192.82,192.65,12.44233569]
[1730995189261,12.44233569,192.79,192.65,12.44233569]
[1730995189466,11.44233569,192.79,192.65,12.44233569]
[1730995189662,11.44233569,192.79,192.62,2.4098]
[1730995189862,11.44233569,192.79,192.66,12.44233569]
[1730995190568,12.44233569,192.77,192.66,12.44233569]
[1730995190765,2.5915,192.79,192.66,12.44233569]
[1730995190964,12.44233569,192.77,192.64,11.44233569]
[1730995191560,12.44233569,192.74,192.64,11.44233569]
[1730995191766,12.44233569,192.74,192.64,16.12233569]
[1730995191962,11.44233569,192.74,192.66,2.5932]
[1730995192158,11.44233569,192.74,192.64,15.12233569]
[1730995192769,11.44233569,192.74,192.68,2.593]
[1730995192970,11.44233569,192.74,192.64,15.12233569]
[1730995193169,10.44233569,192.74,192.64,15.12233569]
[1730995193368,10.44233569,192.74,192.66,2.5931]
[1730995193571,2.4339,192.73,192.66,1.5931]
[1730995193878,2.4339,192.73,192.64,10.44233569]
[1730995194079,2.6266,192.72,192.64,10.44233569]
[1730995194371,2.6266,192.72,192.66,12.44233569]
[1730995194971,11.44233569,192.77,192.7,2.5926]
[1730995195171,4.9699,192.76,192.7,2.5926]
[1730995195371,4.9699,192.76,192.66,12.44233569]
[1730995195575,4.9699,192.76,192.68,12.44233569]
[1730995195783,3.68227371,193.09,192.64,4.68]
[1730995195784,2.499,192.81,192.73,12.44233569]
[1730995196073,2.499,192.81,192.74,4.68]
[1730995196281,12.44233569,192.8,192.74,4.68]
[1730995196581,12.44233569,192.8,192.69,17.12233569]
[1730995196769,11.44233569,192.8,192.69,4.68]
[1730995196979,11.44233569,192.8,192.69,17.12233569]
[1730995197278,11.44233569,192.8,192.69,16.12233569]
[1730995197474,11.44233569,192.8,192.72,2.5924]
[1730995197671,2.499,192.81,192.69,16.12233569]
[1730995197875,2.499,192.81,192.7,12.44233569]
[1730995198180,1.499,192.81,192.71,2.5925]
[1730995198471,12.44233569,192.8,192.69,2.68]
[1730995198673,12.44233569,192.8,192.68,4.68]
[1730995199472,12.44233569,192.8,192.7,2.5927]
[1730995199667,12.44233569,192.8,192.68,4.68]
[1730995200082,12.44233569,192.8,192.7,2.5926]
[1730995200277,11.44233569,192.8,192.68,4.68]
[1730995200789,11.44233569,192.8,192.7,2.5927]
[1730995201470,14.03373569,192.8,192.7,1.5927]
[1730995201675,14.03373569,192.8,192.69,2.5928]
[1730995201873,1.499,192.81,192.68,3.68]
[1730995202181,4.0902,192.81,192.68,3.68]
[1730995202786,2.0902,192.81,192.68,3.68]
[1730995203081,2.0902,192.81,192.7,2.5926]
[1730995203274,2.0902,192.81,192.7,1.5926]
[1730995204278,2.4709,192.83,192.68,4.42]
[1730995205782,1.4709,192.83,192.68,4.42]
[1730995206182,1.4709,192.83,192.68,3.42]
[1730995206874,4.062,192.83,192.73,2.5923]
[1730995207178,1.4709,192.83,192.73,2.5923]
[1730995207382,2.5913,192.81,192.7,2.5926]
[1730995207578,0.4709,192.83,192.68,3.42]
[1730995207885,0.4709,192.83,192.68,2.42]
[1730995208083,2.453,192.82,192.72,2.5924]
[1730995208585,2.5912,192.81,192.68,2.5929]
[1730995208782,2.453,192.82,192.68,4.42]
[1730995208979,2.453,192.82,192.68,3.42]
[1730995209180,5.0442,192.82,192.71,2.5925]
[1730995209479,2.453,192.82,192.68,3.42]
[1730995209882,2.5916,192.79,192.68,2.5929]
[1730995210182,2.4014,192.78,192.66,1.29658245]
[1730995210386,2.4014,192.78,192.66,4.89037931]
[1730995210580,1.4014,192.78,192.66,4.89037931]
[1730995210782,1.4014,192.78,192.68,2.5929]
[1730995210975,1.4014,192.78,192.66,3.89037931]
[1730995211290,2.5919,192.77,192.65,2.5933]
[1730995211490,1.4014,192.78,192.63,4.42]
[1730995211686,1.4014,192.78,192.64,1.29668009]
[1730995211882,2.5918,192.77,192.65,1.29668009]
[1730995212182,1.4014,192.78,192.61,4.42]
[1730995212385,0.4014,192.78,192.61,4.42]
[1730995212581,2.9932,192.78,192.66,2.5932]
[1730995212888,0.4014,192.78,192.61,4.42]
[1730995213189,0.4014,192.78,192.68,2.5929]
[1730995213483,0.4014,192.78,192.63,1.29662971]
[1730995213893,4.42,192.81,192.64,1.29662971]
[1730995214185,4.42,192.81,192.62,3.42]
[1730995214377,2.592,192.76,192.63,1.29680503]
[1730995214582,5.1916839,192.76,192.64,1.29680503]
[1730995214886,4.42,192.81,192.62,3.42]
[1730995215086,2.453,192.82,192.63,1.29681757]
[1730995215290,4.42,192.81,192.63,2.5935]
[1730995215589,4.42,192.81,192.42,29.26434398]
[1730995215782,4.42,192.81,192.44,5.0087]
[1730995215988,4.42,192.81,192.45,1.29692763]
[1730995216285,2.453,192.82,192.44,5.0087]
[1730995216483,2.453,192.82,192.45,2.2504826]
[1730995216682,4.42,192.81,192.67,2.593]
[1730995216885,4.42,192.8,192.61,4.42]
[1730995217085,4.42,192.8,192.62,6.9023]
[1730995217281,2.453,192.82,192.62,6.9023]
[1730995217487,4.42,192.81,192.62,6.9023]
[1730995217788,4.42,192.81,192.64,2.5935]
[1730995218091,2.599,192.8,192.58,2.5476]
[1730995218484,2.599,192.8,192.58,1.2976]
[1730995218684,2.599,192.8,192.57,4.42]
[1730995219189,4.42,192.79,192.57,4.42]
[1730995219386,4.42,192.79,192.65,2.5934]
[1730995219694,4.42,192.79,192.57,4.17]
[1730995219888,4.42,192.79,192.57,3.17]
[1730995220483,2.5918,192.77,192.58,2.3725]
[1730995220782,4.42,192.78,192.58,2.3725]
[1730995221289,2.599,192.8,192.58,1.3725]
[1730995221493,5.21926982,192.77,192.58,1.3725]
[1730995221690,2.599,192.8,192.58,1.3725]
[1730995222095,1.5921,192.75,192.63,2.5936]
[1730995222293,2.5904,192.74,192.63,2.5936]
[1730995222496,2.5904,192.74,192.59,4.42]
[1730995222797,2.5904,192.74,192.59,3.42]
[1730995222988,2.5904,192.74,192.6,7.28889281]
[1730995223182,2.5904,192.74,192.67,2.593]
[1730995223388,1.5904,192.74,192.61,4.90042276]
[1730995223595,1.5904,192.74,192.62,4.8996583]
[1730995223796,1.5904,192.74,192.67,2.5931]
[1730995223998,1.5904,192.74,192.64,4.9005459]
[1730995224196,1.5904,192.74,192.62,4.9018067]
[1730995224491,1.5904,192.74,192.63,4.90145973]
[1730995224701,1.5904,192.74,192.61,2.392]
[1730995224894,1.5904,192.74,192.62,4.90203207]
[1730995225092,1.5904,192.74,192.61,2.392]
[1730995225398,0.5904,192.74,192.62,4.9004461]
[1730995225697,0.5904,192.74,192.63,3.9004461]
[1730995225893,2.4039,192.76,192.61,2.392]
[1730995226693,1.4039,192.76,192.64,2.5935]
[1730995226897,1.4039,192.76,192.61,2.392]
[1730995227087,1.4039,192.76,192.61,1.392]
[1730995227287,2.57996116,192.75,192.61,1.392]
[1730995227585,1.4039,192.76,192.61,1.392]
[1730995227786,4.03832903,192.76,192.61,1.392]
[1730995228098,0.4039,192.76,192.65,2.5933]
[1730995228604,0.4039,192.76,192.65,1.5933]
[1730995229192,2.5923,192.73,192.62,3.8907]
[1730995229399,0.4039,192.76,192.6,6.8073]
[1730995229588,0.4039,192.76,192.61,1.29692332]
[1730995229901,0.4039,192.76,192.62,1.29692332]
[1730995230204,0.4039,192.76,192.63,1.29687464]
[1730995230399,0.4039,192.76,192.6,6.8073]
[1730995231189,3.8239,192.78,192.6,6.8073]
[1730995231391,2.5918,192.77,192.65,2.5933]
[1730995231593,2.5918,192.77,192.65,1.5933]
[1730995231789,3.8239,192.78,192.6,6.8073]
[1730995232099,2.5922,192.75,192.63,2.5936]
[1730995232302,2.57556628,192.77,192.63,2.5936]
[1730995232501,2.592,192.76,192.65,2.5934]
[1730995232701,1.592,192.76,192.65,2.5934]
[1730995232892,1.592,192.76,192.65,1.5934]
[1730995233595,2.5919,192.76,192.64,2.5935]
[1730995233799,1.5919,192.76,192.64,2.5935]
[1730995234002,1.5919,192.76,192.6,2.3873]
[1730995234003,2.54275307,192.77,192.6,2.3873]
[1730995234192,5.13465307,192.77,192.65,1.5934]
[1730995234396,2.5919,192.77,192.65,1.5934]
[1730995235003,3.8239,192.78,192.6,2.3873]
[1730995235203,2.8239,192.78,192.6,2.3873]
[1730995235399,2.8239,192.78,192.6,1.3873]
[1730995235701,2.592,192.76,192.65,2.5933]
[1730995235899,4.42,192.77,192.55,2.5287]
[1730995236101,2.5036,192.75,192.55,2.5287]
[1730995236298,2.5926,192.71,192.6,2.594]
[1730995236600,2.5036,192.75,192.6,2.594]
[1730995236796,2.5926,192.71,192.6,2.594]
[1730995236996,4.42,192.74,192.57,4.42]
[1730995237397,6.9236,192.75,192.63,2.5936]
[1730995237597,6.9236,192.75,192.57,4.42]
[1730995237801,2.5036,192.75,192.58,4.89935259]
[1730995238004,2.5036,192.75,192.59,14.50775259]
[1730995238298,2.5036,192.75,192.6,4.89935259]
[1730995238499,1.5036,192.75,192.68,2.593]
[1730995238896,1.5036,192.75,192.67,2.593]
[1730995239093,1.5036,192.75,192.59,4.42]
[1730995239504,1.5036,192.75,192.6,4.9030595]
[1730995239717,0.5036,192.75,192.61,4.9030595]
[1730995240002,2.5924,192.73,192.62,4.9030595]
[1730995240202,0.5036,192.75,192.59,4.42]
[1730995240399,0.5036,192.75,192.6,2.5941]
[1730995240400,2.5926,192.71,192.6,2.5941]
[1730995240802,2.6211,192.72,192.55,9.3507]
[1730995240996,2.5929,192.69,192.58,2.5942]
[1730995241205,2.6211,192.72,192.55,4.9307]
[1730995241206,2.4643,192.68,192.55,4.9307]
[1730995241602,1.4643,192.68,192.57,2.5944]
[1730995241907,1.4643,192.68,192.55,4.9307]
[1730995241908,1.4643,192.68,192.55,3.9307]
[1730995242114,1.4643,192.68,192.58,2.5943]
[1730995242306,1.4643,192.68,192.59,1.29730023]
[1730995242501,2.6211,192.72,192.6,1.29730023]
[1730995242810,1.6211,192.72,192.64,2.5935]
[1730995243200,1.6211,192.72,192.61,7.0139]
[1730995243408,2.565,192.71,192.62,1.29711788]
[1730995243606,2.565,192.71,192.55,3.9307]
[1730995243803,2.565,192.71,192.56,1.29714145]
[1730995244112,1.565,192.71,192.57,1.29714145]
[1730995244313,1.565,192.71,192.61,2.5938]
[1730995244610,1.565,192.71,192.61,1.5938]
[1730995244912,4.1577,192.71,192.59,2.5942]
[1730995245110,1.565,192.71,192.6,1.29721735]
[1730995245304,0.565,192.71,192.61,1.29721735]
[1730995245500,0.565,192.71,192.62,3.89091735]
[1730995245700,0.565,192.71,192.62,1.5937]
[1730995246016,0.565,192.71,192.61,2.5939]
[1730995246307,0.565,192.71,192.56,2.5769]
[1730995246502,1.1861,192.72,192.57,1.29717075]
[1730995246707,1.1861,192.72,192.61,2.5938]
[1730995246903,1.1861,192.72,192.62,1.29717075]
[1730995247103,1.1861,192.72,192.57,2.55806268]
[1730995247314,3.7786,192.72,192.6,2.594]
[1730995247610,1.1861,192.72,192.61,1.29713331]
[1730995247804,1.1861,192.72,192.62,1.29713331]
[1730995248008,1.1861,192.72,192.63,1.29713331]
[1730995248207,0.1861,192.72,192.64,1.29708564]
[1730995248413,0.1861,192.72,192.61,2.5939]
[1730995248615,0.1861,192.72,192.62,0.29708374]
[1730995248814,0.1861,192.72,192.57,7.07692877]
[1730995249008,0.1861,192.72,192.57,2.65692877]
[1730995249209,0.1861,192.72,192.62,2.5937]
[1730995249405,6.012,192.76,192.62,2.5937]
[1730995249605,2.5921,192.75,192.62,2.5937]
[1730995249806,6.012,192.76,192.57,7.07692877]
[1730995250008,15.62,192.88,192.57,7.07692877]
[1730995250211,4.42,192.85,192.57,7.07692877]
[1730995250412,4.42,192.84,192.58,5.1887]
[1730995250608,2.5912,192.82,192.58,5.1887]
[1730995250809,16.66208641,192.89,192.58,5.1887]
[1730995251114,19.25238641,192.89,192.57,22.69692877]
[1730995251316,4.42,192.94,192.57,38.32692877]
[1730995251611,4.42,192.95,192.78,2.5916]
[1730995251814,2.5899,192.92,192.78,2.5916]
[1730995252003,2.4976,192.93,192.77,4.42]
[1730995252203,2.4976,192.93,192.77,3.42]
[1730995252405,2.5903,192.89,192.77,3.42]
[1730995252609,2.4976,192.93,192.78,2.5916]
[1730995252915,18.1176,192.93,192.77,3.42]
[1730995253212,2.4976,192.93,192.77,3.42]
[1730995253416,2.5904,192.88,192.73,2.59256519]
[1730995253614,4.42,192.87,192.67,7.4245]
[1730995253911,2.4976,192.93,192.71,2.5926]
[1730995253912,2.5907,192.86,192.71,2.5926]
[1730995254110,4.42,192.86,192.71,2.5926]
[1730995254311,4.42,192.86,192.71,1.5926]
[1730995254516,4.42,192.86,192.67,10.06299626]
[1730995254517,1.0,192.92,192.67,10.06299626]
[1730995254723,4.42,192.88,192.71,2.5925]
[1730995255016,2.5909,192.84,192.67,10.06299626]
[1730995255314,1.5909,192.84,192.71,2.5925]
[1730995255517,4.42,192.88,192.67,10.06299626]
[1730995255822,4.42,192.88,192.68,4.88764394]
[1730995256129,4.42,192.88,192.69,4.88764394]
[1730995256423,4.42,192.88,192.67,10.06299626]
[1730995256424,4.42,192.88,192.7,4.88764394]
[1730995256719,2.5906,192.86,192.73,2.5923]
[1730995256916,1.5906,192.86,192.73,2.5923]
[1730995257121,1.5906,192.86,192.72,4.42]
[1730995257313,2.5907,192.85,192.72,6.0123]
[1730995258116,1.5907,192.85,192.73,2.5923]
[1730995258313,2.5901,192.9,192.72,3.42]
[1730995258513,4.8904,192.91,192.72,3.42]
[1730995259415,4.8904,192.91,192.7,4.42]
[1730995259719,2.5908,192.85,192.72,2.5924]
[1730995259916,2.5908,192.85,192.7,4.42]
[1730995260116,1.5908,192.85,192.7,4.42]
[1730995260318,2.591,192.83,192.7,3.42]
[1730995260517,2.591,192.83,192.68,2.60701447]
[1730995260822,2.591,192.83,192.69,4.42]
[1730995261022,2.591,192.83,192.69,5.71666558]
[1730995261218,4.42,192.86,192.69,4.42]
[1730995261410,4.42,192.86,192.7,1.29660783]
[1730995261722,4.42,192.86,192.71,1.29660783]
[1730995261918,4.42,192.86,192.69,4.42]
[1730995262118,4.42,192.86,192.7,1.29660989]